Cogmind - Beta 16.1 @@@ ROGUE MODE // 2026.04.07 @ 10:09:23 Player: Tereza Result: Self-destructed Performance ------------- Evolutions (3) 1500 Regions Visited (10) 2000 Robots Destroyed (162) 810 Value Destroyed (5094) 5094 Prototype IDs (27) 540 Alien Tech Used (0) 0 Bonus (1558) 1558 TOTAL SCORE: 11502 Bonus ------- High Alert Combat Kills 484 Follower Combat Kills 74 Entered Garrisons 200 Used RIF Installer 500 Aligned with FarCom 300 Cogmind --------- Core Integrity 629/700 Matter 17/300 Energy 70/100 System Corruption 0% Temperature Cool (9) Movement Flying (29) Location -7/Factory Parts ------- > --- POWER (1) -------- (None) > --- PROPULSION (4) --- Improved VTOL Module Improved VTOL Module Improved VTOL Module > --- UTILITY (6) ------ Small Storage Unit Advanced Visual Processing Unit Hardlight Generator Hacking Suite > --- WEAPON (2) ------- (None) > --- INVENTORY (8) ---- Improved Sensor Array Improved Signal Interpreter System Shield Trap Reconfigurator Enhanced Autogun Missile Launcher Remote Datajack Spear Peak State ------------ > --- POWER ------------ Improved Deuterium Engine > --- PROPULSION ------- Improved VTOL Module Improved VTOL Module Improved VTOL Module > --- UTILITY ---------- Improved Cooling System Huge Storage Unit Advanced Visual Processing Unit Improved Propulsion Shielding Hardlight Generator > --- WEAPON ----------- Enhanced Autogun Enhanced Autogun > --- INVENTORY -------- Improved Deuterium Engine Light Treads Light Treads Light Treads Light Treads Small Storage Unit Improved Sensor Array Improved Signal Interpreter Improved Medium Armor Plating Hardlight Generator Hacking Suite Hacking Suite System Shield High-powered Tractor Beam Trap Reconfigurator High-powered Shotgun Enhanced Autogun Missile Launcher Datajack Remote Datajack Spear [Rating: 44] Favorites ----------- Power Ion Engine Engine Ion Engine Power Core Light Nuclear Core Propulsion Light Treads Treads Light Treads Flight Unit Improved VTOL Module Utility Huge Storage Unit Device Hardlight Generator Storage Huge Storage Unit Processor Salvage Targeting Computer Hackware Hacking Suite Protection Medium Armor Plating Weapon Enhanced Autogun Energy Gun Medium Laser Ballistic Gun Enhanced Autogun Launcher Rocket Launcher Piercing Weapon Spear Build | -11 -10 -10 -9 -9 -9 -8 -8 -8 -8 -7 ------- Run | Yrd Mat Min Mat Min Exi Min Mat Gar Mat Fac Slots Evolved 6 | . . . 2 . . . 2 . . 2 Power . | . . . . . . . . . . . Propulsion 2 | . . . 1 . . . 1 . . . Utility 4 | . . . 1 . . . 1 . . 2 Weapon . | . . . . . . . . . . . Parts Attached 77 | 7 3 1 15 1 1 . 18 13 11 7 Power 6 | 1 . . . 1 . . 2 2 . . Engine 5 | 1 . . . 1 . . 1 2 . . Core 1 | . . . . . . . 1 . . . Reactor . | . . . . . . . . . . . Propulsion 31 | 2 . . 5 . . . 8 7 7 2 Treads 28 | 2 . . 5 . . . 8 7 6 . Leg . | . . . . . . . . . . . Wheel . | . . . . . . . . . . . Hover . | . . . . . . . . . . . Flight 3 | . . . . . . . . . 1 2 Utility 21 | 2 1 . 4 . 1 . 4 3 2 4 Device 8 | 1 . . 1 . . . 3 1 1 1 Storage 3 | 1 1 . . . 1 . . . . . Processor 2 | . . . 1 . . . . . . 1 Hackware 2 | . . . . . . . . . . 2 Protection 6 | . . . 2 . . . 1 2 1 . Artifact . | . . . . . . . . . . . Weapon 19 | 2 2 1 6 . . . 4 1 2 1 Energy Gun 1 | 1 . . . . . . . . . . Energy Cannon . | . . . . . . . . . . . Ballistic Gun 14 | 1 1 . 6 . . . 3 . 2 1 Ballistic Cannon . | . . . . . . . . . . . Launcher 3 | . 1 1 . . . . . 1 . . Special Weapon . | . . . . . . . . . . . Impact Weapon . | . . . . . . . . . . . Slashing Weapon . | . . . . . . . . . . . Piercing Weapon 1 | . . . . . . . 1 . . . Special Melee Weapon . | . . . . . . . . . . . Unidentified Prototypes 2 | . . . . . . . 1 . 1 . Parts Lost 18 | . . . 9 . . . 1 6 . 2 Power 3 | . . . 1 . . . . 1 . 1 Propulsion 5 | . . . 2 . . . 1 2 . . Utility 7 | . . . 4 . . . . 2 . 1 Weapon 3 | . . . 2 . . . . 1 . . Highest Loss Streak 5 | . . . 5 . . . 1 2 . 2 To Critical Strikes 1 | . . . 1 . . . . . . . Average Backups 19 | 3 11 15 14 14 15 15 24 24 24 8 Power 1 | . . . . 1 . . 2 1 1 . Propulsion 4 | 1 3 3 3 5 5 5 5 4 6 . Utility 8 | . 4 6 5 5 5 5 11 10 10 4 Weapon 4 | . 2 4 3 2 4 3 4 5 4 3 Tool/Special . | . . . . . . . . . . . Unused Backups 34 | . 3 1 2 . . . 12 . 3 13 Power 8 | . 1 . . . . . 6 . . 1 Propulsion 8 | . 2 . . . . . 1 . 1 4 Utility 8 | . . . . . . . 1 . 2 5 Weapon 7 | . . 1 2 . . . 3 . . 1 Tool/Special 3 | . . . . . . . 1 . . 2 Average Slot Usage (%) 94 | . 99 100 90 77 72 85 92 99 98 73 Engine 8 | . 14 14 5 . 11 11 5 8 9 6 Treads 32 | . 27 28 32 33 33 33 35 35 36 1 Device 11 | . 14 14 4 . . . 10 17 17 9 Storage 10 | . 14 14 11 11 17 15 9 9 9 6 Protection 7 | . . . 10 11 11 11 10 9 9 . Ballistic Gun 18 | . 23 28 21 22 . 14 17 16 18 4 Peak Build Rating 44 | 7 9 10 14 12 11 14 34 35 38 44 Average Rating 22 | 4 8 9 12 11 10 12 26 33 36 34 On Entrance 15 | . 7 9 9 12 9 11 14 34 32 36 Avg Prop Armor Cover (%) . | . . . . . . . . . . . Naked Turns . | . . . . . . . . . . . Heaviest Build 116 | 14 31 29 33 33 110 116 111 111 111 105 Greatest Support 82 | 40 40 40 63 60 60 60 80 80 82 82 Greatest Overweight (x) 2 | . . . . . 1 1 1 1 1 2 Average Overweight (x) . | . . . . . . 1 1 1 1 1 Largest Inventory Capacity 25 | 8 15 15 15 15 25 25 25 25 25 25 Average Capacity 20 | 7 14 15 15 15 20 25 25 25 25 8 Most Carried 25 | 5 15 15 15 15 15 16 25 25 25 25 Average Carried 19 | 3 11 14 14 14 14 15 24 24 24 8 Final Capacity 25 | 8 15 15 15 15 25 25 25 25 25 8 Final Carried 25 | 5 15 15 14 15 15 16 25 25 25 8 Class Distribution -------------------- 48% | Mutant 43% | Scavenger-Mutant 5% | Commander-Mutant Dominant Class ---------------- Mutant | -10/Materials Commander-Mutant | -10/Mines Mutant | -9/Materials Mutant | -9/Mines Mutant | -9/Exiles Mutant | -8/Mines Scavenger-Mutant | -8/Materials Scavenger-Mutant | -8/Garrison Scavenger-Mutant | -8/Materials Hacker-Mutant | -7/Factory Resources | -11 -10 -10 -9 -9 -9 -8 -8 -8 -8 -7 ----------- Run | Yrd Mat Min Mat Min Exi Min Mat Gar Mat Fac Matter Collected 4115 | 224 190 126 826 . 35 73 629 956 1056 . Remotely . | . . . . . . . . . . . Salvage Created 5948 | 12 465 150 1527 . . 52 1069 1257 1416 . Parts 388 | 4 31 15 108 . . 4 65 86 75 . Haulers Intercepted 16 | . 2 . 5 . . . 5 . 4 . Recyclers Shooed 4 | . 1 . 1 . . . . . 1 1 Parts Field Recycled . | . . . . . . . . . . . Retrieved Matter . | . . . . . . . . . . . Parts Self-Destructed . | . . . . . . . . . . . Prevented . | . . . . . . . . . . . Parts Restored . | . . . . . . . . . . . Kills | -11 -10 -10 -9 -9 -9 -8 -8 -8 -8 -7 ------- Run | Yrd Mat Min Mat Min Exi Min Mat Gar Mat Fac Combat Hostiles Destroyed 117 | . 8 7 30 . . 1 17 36 18 . Guns 105 | . 8 5 26 . . 1 17 30 18 . AOE 12 | . . 2 4 . . . . 6 . . Classes Destroyed 13 | 1 5 . 4 . . 1 . 1 1 . Worker 8 | . . . 2 . . . 3 . 3 . Tunneler 3 | 1 . . 1 . . . . . 1 . Hauler 16 | . 2 . 5 . . . 5 . 4 . Recycler 3 | . . . . . . . . . 3 . Operator 4 | . 1 . 1 . . . 1 . 1 . Watcher 11 | . 3 . 4 . . . 1 . 3 . Swarmer 33 | . 3 4 6 . . . 4 13 3 . Grunt 51 | . 5 3 15 . . . 9 12 7 . Brawler 4 | . . . 1 . . . 1 . 2 . Duelist 3 | . . . 1 . . . . 1 1 . Sentry 20 | . . . 7 . . . 3 6 4 . Hunter 3 | . . . . . . 1 . 1 1 . Programmer 3 | . . . . . . . . 3 . . Best Kill Streak 10 | 1 4 3 10 . . 1 7 9 4 . Combat Bots Only 9 | . 3 3 6 . . 1 6 9 3 . Max Kills in Single Turn 5 | 1 1 2 5 . . 1 2 4 2 . Gunslinging . | . . . . . . . . . . . Exploded 4 | . . 2 4 . . . . 4 . . Melee . | . . . . . . . . . . . Uniques/NPCs Destroyed . | . . . . . . . . . . . Combat | -11 -10 -10 -9 -9 -9 -8 -8 -8 -8 -7 -------- Run | Yrd Mat Min Mat Min Exi Min Mat Gar Mat Fac Hostile Shots Fired 570 | . 49 34 155 . . 12 64 173 56 27 Missed 170 | . 12 9 43 . . 2 19 51 21 13 Hits 400 | . 37 25 112 . . 10 45 122 35 14 Melee 7 | . . . 7 . . . . . . . Projectile 393 | . 37 25 105 . . 10 45 122 35 14 Critical Strikes 19 | . 2 . 7 . . . 3 7 . . Actively Blocked 2 | . . . 2 . . . . . . . Damage Taken 5027 | . 424 230 1557 . . 105 722 1377 406 206 Core 681 | . 50 37 273 . . 13 48 143 46 71 Absorbed by Shields 499 | . . . . . . . 60 303 124 12 Redirected to Shielding 138 | . . . 50 . . . . . 88 . Regen/Repaired (Parts) 338 | . 217 . 121 . . . . . . . Core Remaining (%) 62 | 100 . 65 . . . 28 . . 56 . Volleys Fired 469 | 10 48 19 116 . . 6 63 93 112 2 Largest 2 | 2 2 2 2 . . 2 2 2 2 1 Hottest 70 | 70 70 53 56 . . 46 53 64 53 25 Shots Fired 932 | 15 96 38 230 . . 12 126 186 227 2 Gun 928 | 15 96 37 229 . . 12 126 184 227 2 Cannon . | . . . . . . . . . . . Launcher 4 | . . 1 1 . . . . 2 . . Special . | . . . . . . . . . . . Kinetic 887 | 10 60 37 229 . . 12 126 184 227 2 Thermal 41 | 5 36 . . . . . . . . . Explosive 4 | . . 1 1 . . . . 2 . . Electromagnetic . | . . . . . . . . . . . Robot Hit Streak 22 | 2 10 2 13 . . 4 22 12 14 1 Robot Miss Streak 4 | 4 4 4 4 . . 3 3 4 4 2 Penetration Max 1 | . . . . . . . 1 1 . . Secondary Targets 14 | . 2 2 4 . . . . 4 2 . Max Gunslinging Chain 1 | . 1 1 1 . . . . 1 1 . Shots Hit Robots 591 | 5 66 17 150 . . 7 83 128 134 1 Core Hits 265 | 2 25 11 68 . . 3 43 60 52 1 Critical Kills 4 | . . 1 . . . . . 3 . . Critical Parts Destroyed 4 | . . . 1 . . . . 3 . . Critical Strikes 13 | . 5 1 1 . . . . 6 . . Burn 5 | . 5 . . . . . . . . . Destroy 8 | . . 1 1 . . . . 6 . . Melee Attacks 19 | . . . . . . . 6 13 . . Impact . | . . . . . . . . . . . Slashing . | . . . . . . . . . . . Piercing 19 | . . . . . . . 6 13 . . Sneak Attacks . | . . . . . . . . . . . Combat Hostiles . | . . . . . . . . . . . Follow-up Attacks . | . . . . . . . . . . . Damage Inflicted 10511 | 58 721 325 2370 . . 83 1587 2926 2425 16 Guns 9694 | 58 721 194 2131 . . 83 1520 2550 2425 12 Cannons . | . . . . . . . . . . . Explosions 800 | . . 131 226 . . . 67 376 . . Melee . | . . . . . . . . . . . Ramming 17 | . . . 13 . . . . . . 4 Kinetic 9274 | 20 339 194 2131 . . 83 1520 2550 2425 12 Thermal 420 | 38 382 . . . . . . . . . Explosive 800 | . . 131 226 . . . 67 376 . . Electromagnetic . | . . . . . . . . . . . Impact . | . . . . . . . . . . . Slashing . | . . . . . . . . . . . Piercing . | . . . . . . . . . . . Highest Corruption 9 | . . . 9 9 9 9 . 5 5 . Average Corruption 6 | . . . 8 9 9 9 . 4 5 . Corruption Purged . | . . . . . . . . . . . Corruption Blocked . | . . . . . . . . . . . Effects 125 | . . . 13 1 14 12 . 33 52 . Message Errors 26 | . . . 2 . 5 3 . 6 10 . Matter Fused 32 | . . . 4 . 3 2 . 10 13 . Heat Flow Errors 14 | . . . 2 . . 2 . 1 9 . Energy Discharges 21 | . . . 2 1 5 2 . 3 8 . Parts Rejected 2 | . . . . . . . . 1 1 . Parts Fused 1 | . . . . . . . . 1 . . Data Loss (minor) 18 | . . . 2 . 1 2 . 7 6 . Data Loss (major) 3 | . . . . . . . . 1 2 . Misfires 5 | . . . . . . . . 2 3 . Alerts 2 | . . . 1 . . 1 . . . . Weapon Failures 1 | . . . . . . . . 1 . . Overload Shots . | . . . . . . . . . . . Overflow Damage . | . . . . . . . . . . . Projectiles . | . . . . . . . . . . . Explosions . | . . . . . . . . . . . Melee . | . . . . . . . . . . . Knockbacks . | . . . . . . . . . . . Impact . | . . . . . . . . . . . Kinetic . | . . . . . . . . . . . Secondary . | . . . . . . . . . . . Self-Inflicted Damage 149 | . . . 33 . . . 114 . . 2 Shots 2 | . . . 1 . . . 1 . . . Rammed 4 | . . . 1 . . . 1 . . 2 Targets Rammed 5 | . . . 2 . . . 1 . . 2 Kicked . | . . . . . . . . . . . Crushed 1 | . . . 1 . . . . . . . Highest Temperature 254 | 70 247 9 253 . . 148 38 177 254 . Average Temperature 68 | 28 83 8 48 . . 73 10 86 113 . Received Heat Transfer 1759 | . 222 57 558 . . . 314 434 174 . Siege Activations . | . . . . . . . . . . . Martial Activations . | . . . . . . . . . . . Shielding Activations . | . . . . . . . . . . . Robots Disrupted . | . . . . . . . . . . . Combat Hostiles . | . . . . . . . . . . . Robots Corrupted . | . . . . . . . . . . . Combat Hostiles . | . . . . . . . . . . . Parts Fried . | . . . . . . . . . . . Impact Corruptions . | . . . . . . . . . . . Robots Melted . | . . . . . . . . . . . Combat Hostiles . | . . . . . . . . . . . Parts Melted 6 | . 6 . . . . . . . . . Heat Transferred 1591 | 111 1480 . . . . . . . . . Parts Sabotaged . | . . . . . . . . . . . Parts Stolen . | . . . . . . . . . . . Parts Stripped . | . . . . . . . . . . . Power Chain Reactions . | . . . . . . . . . . . Alert | -11 -10 -10 -9 -9 -9 -8 -8 -8 -8 -7 ------- Run | Yrd Mat Min Mat Min Exi Min Mat Gar Mat Fac Maximum Alert Level 4 | . . . 1 . . . 1 4 2 1 Low Security (%) 51 | 100 100 100 39 100 . 100 88 . . 86 Level 1 27 | . . . 60 . . . 11 17 62 13 Level 2 12 | . . . . . . . . 28 37 . Level 3 5 | . . . . . . . . 35 . . Level 4 3 | . . . . . . . . 19 . . Level 5 . | . . . . . . . . . . . High Security . | . . . . . . . . . . . Max Security . | . . . . . . . . . . . Peak Influence 1421 | 5 70 112 379 127 . 30 367 1421 697 215 Initial 692 | . . . 38 127 . . . 234 692 215 Average 264 | . 11 29 199 124 . 1 107 777 378 146 Influence Increases 4134 | 5 260 271 927 . . 30 686 1247 708 . Destroy 0b10 Robot/C 2420 | . 160 200 620 . . 20 340 720 360 . Destroy 0b10 Robot/NC 225 | 5 30 . 65 . . . 50 . 75 . Destroy Leader 474 | . 50 40 158 . . 10 72 30 114 . Allied During Kill 23 | . . 19 4 . . . . . . . Trap Triggered on 0b10 30 | . . . . . . . 30 . . . Successful Hack 38 | . 5 . 7 . . . 19 . 7 . Disable Machine 165 | . . . 15 . . . 15 . 135 . Anti-Garrison Action 450 | . . . . . . . . 450 . . Destroy Structure 99 | . . 12 13 . . . 25 47 2 . Lose Combat Pursuer 210 | . 15 . 45 . . . 135 . 15 . Influence Decreases 4079 | 5 260 172 698 211 117 30 325 187 1655 419 Entered New Map 1494 | . . . 61 201 117 . . 127 729 259 Time Decay 2077 | 5 260 172 519 10 . 30 315 . 626 140 Lost Part 170 | . . . 90 . . . . 60 . 20 Lost Ally 38 | . . . 28 . . . 10 . . . Purge Threat 300 | . . . . . . . . . 300 . Squads Dispatched 9 | . 1 . 2 . . . 1 . 4 1 Investigation 2 | . . . 1 . . . . . 1 . Extermination . | . . . . . . . . . . . Reinforcement 6 | . 1 . 1 . . . 1 . 2 1 Assault 1 | . . . . . . . . . 1 . Garrison . | . . . . . . . . . . . Intercept . | . . . . . . . . . . . Searches Triggered . | . . . . . . . . . . . Construction Impeded . | . . . . . . . . . . . Haulers Reinforced . | . . . . . . . . . . . Active Scanning Responses . | . . . . . . . . . . . Cargo Convoy Interrupts . | . . . . . . . . . . . Stealth | -11 -10 -10 -9 -9 -9 -8 -8 -8 -8 -7 --------- Run | Yrd Mat Min Mat Min Exi Min Mat Gar Mat Fac Distress Signals 10 | . . . 3 . . . 4 . 3 . Communications Jammed . | . . . . . . . . . . . Distress Signals . | . . . . . . . . . . . Times Spotted 187 | . 18 10 43 . . 1 34 36 38 7 Peak Tracking Total 8 | . 4 3 6 . . 1 8 7 4 7 Tactical Retreats 11 | . 1 . 3 . . . 6 . 1 . Traps | -11 -10 -10 -9 -9 -9 -8 -8 -8 -8 -7 ------- Run | Yrd Mat Min Mat Min Exi Min Mat Gar Mat Fac Traps Triggered 9 | . . . . . . . . 8 1 . Indirectly . | . . . . . . . . . . . Trap Hack Attempts . | . . . . . . . . . . . Triggered . | . . . . . . . . . . . Disarmed . | . . . . . . . . . . . Reprogrammed . | . . . . . . . . . . . Reused 3 | . . . . . . . 3 . . . Traps Reconfigurated 3 | . . . . . . . 3 . . . Traps Extracted . | . . . . . . . . . . . Installed . | . . . . . . . . . . . Triggered 3 | . . . . . . . 3 . . . Machines | -11 -10 -10 -9 -9 -9 -8 -8 -8 -8 -7 ---------- Run | Yrd Mat Min Mat Min Exi Min Mat Gar Mat Fac Machines Disabled 14 | . . . 1 . . . 1 3 9 . Max in Single Turn 2 | . . . 1 . . . 1 1 2 . Garrison Relay 3 | . . . . . . . . 3 . . Machines Repaired . | . . . . . . . . . . . Machines Dismantled . | . . . . . . . . . . . Machines Sabotaged . | . . . . . . . . . . . Overloaded Fab Kills . | . . . . . . . . . . . Hacking | -11 -10 -10 -9 -9 -9 -8 -8 -8 -8 -7 --------- Run | Yrd Mat Min Mat Min Exi Min Mat Gar Mat Fac Machines Accessed 37 | . 8 . 9 . 2 . 9 2 7 . Terminals 29 | . 6 . 7 . . . 8 2 6 . Fabricators . | . . . . . . . . . . . Repair Stations 2 | . 1 . 1 . . . . . . . Recycling Units 1 | . 1 . . . . . . . . . Scanalyzers 2 | . . . 1 . . . . . 1 . Garrison Access 1 | . . . . . . . 1 . . . Total Hacks 106 | . 24 . 22 . 5 . 25 7 23 . Successful 53 | . 13 . 8 . 5 . 16 . 11 . Failed 52 | . 11 . 14 . . . 8 7 12 . Catastrophic 6 | . . . 1 . . . . 2 3 . Database Lockouts 1 | . . . . . . . 1 . . . Manual 58 | . 16 . 11 . 1 . 20 . 10 . Terminals 85 | . 19 . 14 . . . 24 7 21 . Fabricators . | . . . . . . . . . . . Repair Stations 8 | . 4 . 4 . . . . . . . Recycling Units 1 | . 1 . . . . . . . . . Scanalyzers 6 | . . . 4 . . . . . 2 . Garrison Access 1 | . . . . . . . 1 . . . Terminal Hacks 22 | . 4 . 1 . 5 . 6 . 6 . Record 4 | . . . . . 4 . . . . . Robot Analysis 3 | . 1 . . . . . 2 . . . Prototype ID Bank 1 | . 1 . . . . . . . . . Branch Access Points 1 | . . . . . . . 1 . . . Alert Level 5 | . . . 1 . . . 1 . 3 . Unreport Threat 2 | . . . . . . . . . 2 . Locate Traps 1 | . 1 . . . . . . . . . Hauler Manifests 3 | . 1 . . . . . 1 . 1 . Zone Layout 1 | . . . . . . . 1 . . . Proto ID Catalog 1 | . . . . . 1 . . . . . Fabricator Hacks . | . . . . . . . . . . . Repair Station Hacks 6 | . 4 . 2 . . . . . . . Scan Component 3 | . 2 . 1 . . . . . . . Repair 3 | . 2 . 1 . . . . . . . Recycling Unit Hacks 1 | . 1 . . . . . . . . . Report Inventory 1 | . 1 . . . . . . . . . Scanalyzer 6 | . . . 4 . . . . . 2 . Retrieve Study 6 | . . . 4 . . . . . 2 . Garrison Access Hacks 1 | . . . . . . . 1 . . . Unlock Access 1 | . . . . . . . 1 . . . Unauthorized Hacks 17 | . 4 . 1 . . . 9 . 3 . Terminals 17 | . 4 . 1 . . . 9 . 3 . Track 2 | . . . . . . . 2 . . . Assimilate 3 | . 1 . 1 . . . 1 . . . Botnet 7 | . 2 . . . . . 4 . 1 . Disrupt 2 | . . . . . . . 1 . 1 . Operators 3 | . 1 . . . . . 1 . 1 . Fabricators . | . . . . . . . . . . . Repair Stations . | . . . . . . . . . . . Recycling Units . | . . . . . . . . . . . Scanalyzers . | . . . . . . . . . . . Garrison Access . | . . . . . . . . . . . Data Cores Recovered 1 | . . . . . . . 1 . . . Used . | . . . . . . . . . . . Hacking Detections 28 | . 7 . 8 . . . 5 2 6 . Full Trace Events 4 | . . . 1 . . . . 2 1 . Feedback Events . | . . . . . . . . . . . Feedback Blocked . | . . . . . . . . . . . Robot Schematics Acquired . | . . . . . . . . . . . Robots Built . | . . . . . . . . . . . Authchips . | . . . . . . . . . . . Time . | . . . . . . . . . . . Total Robot Build Rating . | . . . . . . . . . . . Part Schematics Acquired . | . . . . . . . . . . . Parts Built . | . . . . . . . . . . . Authchips . | . . . . . . . . . . . Time . | . . . . . . . . . . . Total Part Build Rating . | . . . . . . . . . . . Part Studies Acquired 6 | . . . 4 . . . . . 2 . Parts Repaired 3 | . 2 . 1 . . . . . . . Time 78 | . 52 . 26 . . . . . . . Parts Recycled . | . . . . . . . . . . . Recycled Matter . | . . . . . . . . . . . Retrieved Matter . | . . . . . . . . . . . Retrieved Components . | . . . . . . . . . . . Parts Scanalyzed . | . . . . . . . . . . . Part Schematics Acquired . | . . . . . . . . . . . Parts Damaged . | . . . . . . . . . . . Bothacking | -11 -10 -10 -9 -9 -9 -8 -8 -8 -8 -7 ------------ Run | Yrd Mat Min Mat Min Exi Min Mat Gar Mat Fac Used RIF Installer 1 | . . . . . . . . 1 . . Robots Hacked . | . . . . . . . . . . . Non-combat . | . . . . . . . . . . . Combat . | . . . . . . . . . . . Robot Hacks Applied . | . . . . . . . . . . . Relay Couplers Released 11 | . . . . . . . . 11 . . Machine Destruction 11 | . . . . . . . . 11 . . Fabnet Peak Effective % . | . . . . . . . . . . . Robots Rewired . | . . . . . . . . . . . Allies Hacked . | . . . . . . . . . . . Hacks Repelled . | . . . . . . . . . . . Allies | -11 -10 -10 -9 -9 -9 -8 -8 -8 -8 -7 -------- Run | Yrd Mat Min Mat Min Exi Min Mat Gar Mat Fac Total Allies 5 | . 1 3 1 . . . . . . . Largest Group 4 | . 1 4 4 1 1 1 1 . . . Highest-Rated Group 50 | . 10 50 50 10 10 10 10 . . . Highest-Rated Ally 16 | . 10 16 16 10 10 10 10 . . . Total Orders . | . . . . . . . . . . . Ally Attacks 25 | . . 12 13 . . . . . . . Total Damage 223 | . . 93 130 . . . . . . . Kills 4 | . . 3 1 . . . . . . . Allies Corrupted . | . . . . . . . . . . . Allies Melted . | . . . . . . . . . . . Intel | -11 -10 -10 -9 -9 -9 -8 -8 -8 -8 -7 ------- Run | Yrd Mat Min Mat Min Exi Min Mat Gar Mat Fac Active Infowar (turns) 3269 | 22 1308 875 784 . . . . . . 280 Optics 280 | . . . . . . . . . . 280 Seismic 2989 | 22 1308 875 784 . . . . . . . Robot Analysis Total 3 | . 1 . . . . . 2 . . . Derelict Logs Recovered 1 | . . 1 . . . . . . . . Drone Launches . | . . . . . . . . . . . Drone Recoveries . | . . . . . . . . . . . Exploration | -11 -10 -10 -9 -9 -9 -8 -8 -8 -8 -7 ------------- Run | Yrd Mat Min Mat Min Exi Min Mat Gar Mat Fac Turns Passed 11289 | 123 1308 875 1747 25 419 539 1992 1814 2156 291 Spaces Moved 4998 | 53 657 495 769 11 232 259 828 741 793 160 Core 2 | 2 . . . . . . . . . . Treads 4839 | 51 657 495 769 11 232 259 828 741 793 3 Legs . | . . . . . . . . . . . Wheels . | . . . . . . . . . . . Hover . | . . . . . . . . . . . Flight 157 | . . . . . . . . . . 157 Fastest Speed 29 | 50 160 160 160 160 160 200 200 200 196 29 Average Speed 180 | 155 160 160 160 160 180 200 200 200 201 103 Slowest Speed 206 | 160 160 160 160 160 200 200 200 200 206 196 Overloaded Moves . | . . . . . . . . . . . Propulsion Burnouts . | . . . . . . . . . . . Robots Hopped 2 | . . . . . . . . . . 2 Potential Cave-ins . | . . . . . . . . . . . Cave-ins Triggered . | . . . . . . . . . . . Exploration Rate (%) 54 | 5 93 90 79 5 60 69 53 70 75 3 Regions Visited 10 Branch Regions 4 Pre-discovered Areas 2 | . . 1 . . 1 . . . . . Known Exits Taken 1 | . . . . . . . 1 . . . Unknown Exits Taken 8 | 1 1 1 1 1 1 1 . . 1 . Scrap Searched 4 | . . 3 . . . 1 . . . . Spaces Dug 8 | . . . . . . . 6 2 . . Terrain Destroyed 62 | . . 13 10 . . . 23 16 . . Melee 8 | . . . . . . . 6 2 . . Projectile 1 | . . . . . . . . 1 . . AOE 53 | . . 13 10 . . . 17 13 . . Terrain Rammed . | . . . . . . . . . . . Walls Destroyed . | . . . . . . . . . . . Machines Disabled . | . . . . . . . . . . . Actions | -11 -10 -10 -9 -9 -9 -8 -8 -8 -8 -7 --------- Run | Yrd Mat Min Mat Min Exi Min Mat Gar Mat Fac Total 6513 | 78 828 546 1069 19 233 269 1067 905 1215 284 Wait 749 | 2 100 24 150 6 . . 88 9 277 93 Move 4985 | 52 656 494 768 10 231 258 828 740 792 156 Hop 2 | . . . . . . . . . . 2 Pick Up 80 | 7 13 3 8 . 1 2 31 4 7 4 Fast Attach 22 | 5 2 . 2 . . . 3 1 2 7 Attach 27 | 2 . . 7 1 1 2 3 5 2 4 Detach 5 | . . . . 2 . 1 1 . . 1 Swap 56 | . 4 3 8 . . . 14 17 10 . Drop 79 | . 5 3 8 . . . 29 8 13 13 Fire 469 | 10 48 19 116 . . 6 63 93 112 2 Melee 19 | . . . . . . . 6 13 . . Ram 2 | . . . . . . . . . . 2 Kick . | . . . . . . . . . . . Crush 3 | . . . 2 . . . 1 . . . Escape Stasis 15 | . . . . . . . . 15 . . Rewire . | . . . . . . . . . . . Trap . | . . . . . . . . . . . Miscellaneous . | . . . . . . . . . . . Route ------- -11/Scrapyard -10/Materials (discovered 5 exits: *Mat x3 / [*Min] / [*Sub]) -10/Mines (discovered 2 exits: *Mat x2) -9/Materials (discovered 3 exits: *Mat / [*Min x2]) -9/Mines -9/Exiles -8/Mines -8/Materials (discovered 2 exits: [*Fac] / Gar) -8/Garrison (discovered 3 exits: *Mat x3) -8/Materials -7/Factory History --------- Turn | Location | Event 41 | -11/Scrapyard | Discovered new exit (range 16) 124 | -11/Scrapyard | Entered Materials 317 | -10/Materials | Build established: Mutant 587 | -10/Materials | Discovered new exit (range 9) 667 | -10/Materials | Repaired Lgt. Treads 694 | -10/Materials | Repaired Lgt. Treads 850 | -10/Materials | Discovered new exit (range 16) 920 | -10/Materials | Discovered new exit (range 11) 1022 | -10/Materials | Discovered new exit (range 12) 1290 | -10/Materials | Discovered new exit (range 4) 1432 | -10/Materials | Entered Mines 1432 | -10/Mines | Accompanied by 1 ally 1545 | -10/Mines | Received a Rocket Launcher from a helpful Derelict 1612 | -10/Mines | Discovered new exit (range 11) 1667 | -10/Mines | Learned location of Zion (-6) 1859 | -10/Mines | Assisted by bots powering up and referring to "LRC-V3" 2155 | -10/Mines | Build established: Commander-Mutant 2243 | -10/Mines | Found a hidden stash of uninstalled traps 2261 | -10/Mines | Discovered new exit (range 5) 2307 | -10/Mines | Entered Materials 2307 | -9/Materials | Accompanied by 4 allies 2307 | -9/Materials | Evolved 2 slots: Propulsion x1, Utility x1 2533 | -9/Materials | Lost 3 allies 2570 | -9/Materials | Discovered new exit (range 13) 2711 | -9/Materials | Repaired Lgt. Treads 2789 | -9/Materials | Build established: Mutant 3068 | -9/Materials | Discovered new exit (range 16) 3317 | -9/Materials | Core integrity fell below 50% 3754 | -9/Materials | Lost 5 parts (1n2u2w) 3795 | -9/Materials | Discovered new exit (range 16) 4054 | -9/Materials | Entered Mines 4054 | -9/Mines | Accompanied by 1 ally 4062 | -9/Mines | Deemed a non-threat by the Exiles lab entrance 4064 | -9/Mines | Discovered new exit (range 5) 4079 | -9/Mines | Entered Exiles 4079 | -9/Exiles | Accompanied by 1 ally 4119 | -9/Exiles | Met 8R-AWN 4145 | -9/Exiles | Met EX-HEX 4191 | -9/Exiles | Met EX-BIN 4211 | -9/Exiles | Aligned with FarCom system 4212 | -9/Exiles | Given EX-Vault access code 4249 | -9/Exiles | Opened EX-Vault 4261 | -9/Exiles | Found Trap Reconfigurator 4300 | -9/Exiles | Warned to stay clear of 0b10 Research branches 4364 | -9/Exiles | Met EX-DEC 4468 | -9/Exiles | Discovered new exit (range 14) 4498 | -9/Exiles | Left Exiles lab with Trap Reconfigurator 4498 | -9/Exiles | Entered Mines 4498 | -8/Mines | Accompanied by 1 ally 5011 | -8/Mines | Discovered new exit (range 13) 5037 | -8/Mines | Entered Materials 5037 | -8/Materials | Accompanied by 1 ally 5037 | -8/Materials | Evolved 2 slots: Propulsion x1, Utility x1 5715 | -8/Materials | Build established: Scavenger-Mutant 6073 | -8/Materials | Discovered new exit (range 3) 6383 | -8/Materials | Central database locked down 6408 | -8/Materials | Build established: Mutant 6786 | -8/Materials | Build established: Scavenger-Mutant 7029 | -8/Materials | Identified exit to Garrison 7029 | -8/Materials | Entered Garrison 7335 | -8/Garrison | Triggered checkpoint 7335 | -8/Garrison | Triggered checkpoint 7388 | -8/Garrison | Destroyed 9 combat bots 7473 | -8/Garrison | Triggered checkpoint 7545 | -8/Garrison | Discovered new exit (range 11) 7628 | -8/Garrison | Garrison Relay disabled 7827 | -8/Garrison | Triggered checkpoint 7835 | -8/Garrison | Triggered checkpoint 7915 | -8/Garrison | Discovered new exit (range 9) 7987 | -8/Garrison | Triggered checkpoint 8082 | -8/Garrison | Installed Relay Interface Framework 8100 | -8/Garrison | Garrison Relay disabled 8362 | -8/Garrison | Discovered new exit (range 13) 8452 | -8/Garrison | Spotted B-75 Beast 8603 | -8/Garrison | Garrison Relay disabled 8617 | -8/Garrison | Triggered checkpoint 8843 | -8/Garrison | Entered Materials 10843 | -8/Materials | First assault squad dispatched 10950 | -8/Materials | Discovered new exit (range 14) 10952 | -8/Materials | Build established: Mutant 10999 | -8/Materials | Entered Factory 10999 | -7/Factory | Evolved 2 slots: Utility x2 11290 | -7/Factory | Self-destructed Last Messages --------------- attach a melee or energy weapon to more easily destroy targets for more matter. 11084_ Dropped Hpw. Shotgun. 11155_ R-06 Scavenger collects Lgt. Treads+. 11156_ R-06 Scavenger collects Adv. Treads+. 11158_ R-06 Scavenger collects Lgt. Treads+. 11165_ R-06 Scavenger collects Hpw. Tractor Beam. 11270_ ALERT: All DSF locations entering lockdown mode. 11280_ S-27 Virus suffers critical hit (Burn). 11282_ Hacking Suite destroyed. 11283_ Imp. Deuterium Engine destroyed. 11285_ Slammed into A-02 Transporter. 11289_ Destabilizing: System interference. 11289_ Hardlight Generator temporarily disabled. 11290_ H-61 Shepherd calls for reinforcements. 11290_ ALERT: Suspicious intruders detected, dispatching Cutter reinforcements to area. Map ----- +----------------------------------------------------+ | ?????????????????????????????????????????????????? | | ?????????????????????????????????????????????????? | | ?????????????????????????????????????????????????? | | ?????????????????????????????????????????????????? | | ?????????????????????????????????????????????????? | | ?????????????????????????????????????????????????? | | ?????????????????????????????????????????????????? | | ?????????????????????????????????????????????????? | | ?????????????????????????????????????????????????? | | ???????????????????????????????????????????????### | | ???????????????????????????????????????????????# | | ???????????????????????????????????????????????#= | | ???????????????????????????????????????????????#! | | ??????????????????????????????????##########???# | | ???????????????????????????######## #???# | | ???????????????????????????? * #]! #???### | | ???????????????????????????? #! #?????# | | ????????????????????????????? # #?????# | | ????????????????????????????? !!! # #?????# | | ??????????????????????????????!!! # #?????# | | ??????????????????????????????!!! # #?????# | | ??????????????????????????????? ? #?????# | | ??????????????????????????????? ??? ???????# | | ?????? #################+######+########## | | ?????? a | | ?????? @ sg | | ?????? H g | | ?????? | | ??????? k | | ??????? ###+#####;######+################## | | ???????? ??????????? #????????????????????????# | | ????????#?????????????? ?????????????????????????# | | ?????????????????????? ?????????????????????????# | | ??????????????????????" ?????????????????????????# | | ??????????????????????"??????????????????????????# | | ?????????????????????""??????????????????????????# | | ?????????????????????""??????????????????????????# | | ????????????????????? ???????????????????????????# | | ?????????????????????????????????????????????????# | | ?????????????????????????????????????????????????+ | | ???????????????????????????????????????????????? # | | ??????????????????????????????????????????????? # | | ??????????????????????????????????????????????? ?# | | ??????????????????????????????????????????????! ?# | | ????????????????????????????????????????????? ??? | | ???????????????????????????????????????????? ???? | | ???????????????????????????????????????????? ???? | | ???????????????????????????????????????????##????? | | ?????????????????????????????????????????????????? | | ?????????????????????????????????????????????????? | +----------------------------------------------------+ Best States ------------- Heat Dissipation 61 Energy Generation 18 Energy Capacity 290 Matter Stores 300 Matter Capacity 300 Sight Range 20 Terrain Scan Density 10 Armor Coverage 375 Core Shielding 20 Propulsion Shielding 66 Evasion (%) 40 Recoil Reduction 4 Salvage Targeting 1 Offensive Hacking 20 Item Schematics ----------------- None Robot Schematics ------------------ None Fabricated ------------ Nothing Repaired ---------- Lgt. Treads | 6% | -10/Materials Lgt. Treads | 38% | -10/Materials Lgt. Treads | 13% | -9/Materials Studied --------- Lgt. Treads | -9/Materials | Hacked Imp. Treads | -9/Materials | Hacked Hvy. Assault Rifle | -9/Materials | Hacked Rocket Launcher | -9/Materials | Hacked Adv. Treads | -8/Materials | Hacked Missile Launcher | -8/Materials | Hacked Alien Tech Used ----------------- None Achievements -------------- None Challenges ------------ None Game ------ Seed TiamatZipLaser Manual? 0 Play Time 00:56:22 Cumulative 225.0 hours Start 2026.04.02 @ 18:23:55 End 2026.04.07 @ 10:09:23 Sessions 5 Manual Loads 0 Difficulty Rogue Special Mode None Game No. 279 Rogue 279 Adventurer 0 Explorer 0 Win Type - Total 3 Types 3/0/0/0/0/0/0/0/0/0 Lore% 75 Gallery% 55 Achievement% 43 Wizard Run 0 Options --------- Layout 1 ASCII 0 Keyboard 1 Movement Numpad Keybinds 0 Fullscreen 2 Font 24/Smallcaps Map View 50x35 Zoom Use 0% Tactical HUD 1 Map Filters NONE Filters NONE Steam 1 RUN: c10097cd-2c4a-4f3f-839a-50b4a832f731